[Event "DVM U12 2021-22"]
[Site "Naumburg"]
[Date "2022.03.25"]
[Round "1"]
[White "Middendorf, Sven-Jonas"]
[Black "Bergmann, Moritz"]
[Result "1-0"]
[ECO "C66"]
[WhiteElo "1424"]
[BlackElo "1439"]
[Annotator "NA"]
[PlyCount "87"]
[EventDate "2022.03.25"]
[EventType "team-tourn"]
[EventRounds "7"]
[EventCountry "GER"]
[SourceTitle "playchess.com"]
[Source "ChessBase"]
[SourceQuality "1"]
[TimeControl "40/5400+30:1800+30"]

1. e4 {[%emt 0:00:03]} e5 {[%emt 0:00:05]} 2. Nf3 {[%emt 0:00:03]} Nc6 {[%emt 0:00:09]} 3. Bb5 {[%emt 0:00:03]} d6 {[%emt 0:00:24]} 4. O-O {[%emt 0:00:16]} Nf6 {[%emt 0:00:15]} 5. Re1 {[%emt 0:00:12]} Bg4 {[%emt 0:00:12]} 6. h3 {[%emt 0:00:50]} Bh5 {[%emt 0:00:06]} 7. c3 {[%emt 0:00:22]} a6 {[%emt 0:00:31]} 8. Ba4 {[%emt 0:00:07]} b5 {[%emt 0:03:29]} 9. Bb3 {[%emt 0:01:11]} Be7 {[%emt 0:03:17]} 10. g4 {[%emt 0:02:16]} Bg6 {[%emt 0:01:32]} 11. d3 {[%emt 0:04:25]} h6 {[%emt 0:02:54]} 12. Nbd2 {[%emt 0:01:10]} O-O {[%emt 0:00:48]} 13. Nf1 {[%emt 0:00:35]} Re8 {[%emt 0:01:15]} 14. Ng3 {[%emt 0:00:22]} Nd7 {[%emt 0:05:38]} 15. Bd5 {[%emt 0:01:43]} Ndb8 {[%emt 0:03:51]} 16. d4 {[%emt 0:02:23]} exd4 {[%emt 0:02:57]} 17. Nxd4 {[%emt 0:00:33]} Qd7 {[%emt 0:02:33]} 18. Be3 {[%emt 0:00:57]} Bh4 {[%emt 0:02:53]} 19. Ngf5 {[%emt 0:10:22]} Bg5 {[%emt 0:07:58]} 20. Bxg5 {[%emt 0:05:50]} hxg5 21. f3 Bxf5 {[%emt 0:04:41]} 22. Nxf5 {[%emt 0:01:36]} Ra7 {[%emt 0:06:21]} 23. Qd2 {[%emt 0:09:00]} Ne5 {[%emt 0:05:16]} 24. Kf2 {[%emt 0:03:22]} g6 {[%emt 0:05:40]} 25. Qxg5 {[%emt 0:06:26]} c6 {[%emt 0:09:09]} 26. Bb3 {[%emt 0:03:59]} d5 {[%emt 0:03:28]} 27. Nh6+ {[%emt 0:06:39]} Kg7 {[%emt 0:03:03]} 28. Nf5+ {[%emt 0:00:44]} Kg8 {[%emt 0:00:10]} 29. Nh6+ {[%emt 0:00:07]} Kh7 {[%emt 0:01:23]} 30. Rad1 {[%emt 0:02:27]} Qd6 {[%emt 0:04:59]} 31. Kg2 {[%emt 0:05:32]} Qe7 {[%emt 0:01:25]} 32. Qxe7 {[%emt 0:01:18]} Raxe7 {[%emt 0:01:23]} 33. g5 {[%emt 0:00:45]} Nc4 {[%emt 0:02:17]} 34. Bxc4 {[%emt 0:00:41]} dxc4 {[%emt 0:00:54]} 35. Ng4 {[%emt 0:00:14]} Rc8 {[%emt 0:02:56]} 36. Nf6+ {[%emt 0:00:50]} Kg7 {[%emt 0:00:37]} 37. Rd6 {[%emt 0:00:15]} Re5 {[%emt 0:01:04]} 38. f4 {[%emt 0:00:47]} Re7 {[%emt 0:00:52]} 39. e5 {[%emt 0:00:24]} Rh8 {[%emt 0:02:06]} 40. Red1 {[%emt 0:00:51]} a5 {[%emt 0:00:36]} 41. Rd8 {[%emt 0:30:27]} Rxd8 {[%emt 0:30:57]} 42. Rxd8 {[%emt 0:00:08]} Re8 {[%emt 0:01:03]} 43. Rxe8 {[%emt 0:00:05]} Nd7 {[%emt 0:00:08]} 44. Rg8# {[%emt 0:00:06]} 1-0

[Event "DVM U12 2021-22"]
[Site "Naumburg"]
[Date "2022.03.25"]
[Round "1"]
[White "Friedrich, Timofej"]
[Black "Zimmer, Tim"]
[Result "1-0"]
[ECO "C50"]
[WhiteElo "1377"]
[BlackElo "1170"]
[Annotator "NA"]
[PlyCount "119"]
[EventDate "2022.03.25"]
[EventType "team-tourn"]
[EventRounds "7"]
[EventCountry "GER"]
[SourceTitle "playchess.com"]
[Source "ChessBase"]
[SourceQuality "1"]
[TimeControl "40/5400+30:1800+30"]

1. e4 {[%emt 0:00:24]} e5 {[%emt 0:00:04]} 2. Nf3 {[%emt 0:00:11]} Nc6 {[%emt 0:00:46]} 3. Bc4 {[%emt 0:00:40]} Bc5 {[%emt 0:00:43]} 4. d3 {[%emt 0:00:30]} Nf6 {[%emt 0:01:08]} 5. Bg5 {[%emt 0:01:30]} h6 {[%emt 0:04:32]} 6. Bxf6 {[%emt 0:01:25]} Qxf6 {[%emt 0:00:21]} 7. c3 {[%emt 0:00:20]} d6 {[%emt 0:03:26]} 8. h3 {[%emt 0:03:51]} a6 {[%emt 0:06:20]} 9. Nbd2 {[%emt 0:05:32]} Ne7 {[%emt 0:02:33]} 10. b4 {[%emt 0:03:20]} Bb6 {[%emt 0:04:04]} 11. Qe2 {[%emt 0:05:33]} Ng6 {[%emt 0:03:37]} 12. g3 {[%emt 0:04:33]} c6 {[%emt 0:12:26]} 13. O-O-O {[%emt 0:09:14]} Be6 {[%emt 0:09:27]} 14. Kb2 {[%emt 0:10:37]} a5 {[%emt 0:13:36]} 15. a3 {[%emt 0:04:39]} Bc7 {[%emt 0:06:47]} 16. d4 {[%emt 0:06:10]} Bxc4 {[%emt 0:03:42]} 17. Qxc4 {[%emt 0:01:51]} O-O {[%emt 0:04:55]} 18. Rhf1 {[%emt 0:05:02]} Ne7 {[%emt 0:03:21]} 19. Rde1 {[%emt 0:06:39]} b5 {[%emt 0:01:49]} 20. Qb3 {[%emt 0:01:24]} Rfe8 {[%emt 0:01:13]} 21. dxe5 {[%emt 0:01:44]} dxe5 {[%emt 0:01:00]} 22. Rc1 {[%emt 0:02:26]} Bd6 {[%emt 0:02:22]} 23. c4 {[%emt 0:01:29]} axb4 {[%emt 0:01:53]} 24. axb4 {[%emt 0:01:06]} c5 {[%emt 0:00:40]} 25. cxb5 {[%emt 0:00:38]} cxb4 {[%emt 0:01:10]} 26. Nc4 {[%emt 0:00:24]} Bc5 {[%emt 0:02:11]} 27. Ncxe5 {[%emt 0:01:30]} Bd4+ {[%emt 0:00:38]} 28. Nxd4 {[%emt 0:00:13]} Qxe5 {[%emt 0:00:07]} 29. Qxb4 {[%emt 0:00:18]} Rab8 {[%emt 0:01:05]} 30. Rc5 {[%emt 0:05:06]} Qxe4 {[%emt 0:00:13]} 31. Re1 {[%emt 0:00:22]} Qg2 {[%emt 0:02:29]} 32. Re2 {[%emt 0:00:30]} Nd5 {[%emt 0:00:27]} 33. Qd2 {[%emt 0:02:35]} Nb6 {[%emt 0:00:46]} 34. Rxe8+ {[%emt 0:02:08]} Rxe8 {[%emt 0:00:07]} 35. Rc6 {[%emt 0:00:31]} Qxc6 {[%emt 0:01:19]} 36. bxc6 {[%emt 0:00:30]} Nc4+ {[%emt 0:00:05]} 37. Kc3 {[%emt 0:00:07]} Nxd2 {[%emt 0:00:14]} 38. Kxd2 {[%emt 0:00:11]} Rc8 {[%emt 0:00:36]} 39. Kd3 {[%emt 0:00:07]} Kf8 {[%emt 0:00:33]} 40. Kc4 {[%emt 0:00:13]} Ke7 {[%emt 0:02:39]} 41. Kc5 {[%emt 0:30:11]} Rc7 {[%emt 0:09:28]} 42. f4 {[%emt 0:00:00]} Kd8 {[%emt 0:01:59]} 43. Nf5 {[%emt 0:00:00]} g6 {[%emt 0:03:32]} 44. Nxh6 {[%emt 0:00:00]} f5 {[%emt 0:01:09]} 45. g4 {[%emt 0:00:00]} Rh7 {[%emt 0:01:25]} 46. g5 {[%emt 0:00:00]} Rg7 {[%emt 0:00:48]} 47. Kd6 {[%emt 0:00:00]} Kc8 {[%emt 0:02:45]} 48. h4 {[%emt 0:00:00]} Kd8 {[%emt 0:02:37]} 49. Ke6 {[%emt 0:00:00]} Rc7 {[%emt 0:01:37]} 50. Nf7+ {[%emt 0:00:00]} Ke8 {[%emt 0:01:39]} 51. Ne5 {[%emt 0:00:00]} Kd8 {[%emt 0:04:51]} 52. Nxg6 {[%emt 0:00:00]} Rxc6+ {[%emt 0:00:19]} 53. Kxf5 {[%emt 0:00:00]} Ke8 {[%emt 0:00:11]} 54. Ne5 {[%emt 0:00:00]} Ra6 {[%emt 0:00:26]} 55. h5 {[%emt 0:00:00]} Kf8 {[%emt 0:00:09]} 56. h6 {[%emt 0:00:00]} Kg8 {[%emt 0:00:21]} 57. g6 {[%emt 0:00:00]} Ra5 {[%emt 0:00:33]} 58. Kf6 {[%emt 0:00:00]} Ra6+ {[%emt 0:00:07]} 59. Ke7 {[%emt 0:00:00]} Ra7+ {[%emt 0:00:41]} 60. Nd7 {[%emt 0:00:00]} 1-0

[Event "DVM U12 2021-22"]
[Site "Naumburg"]
[Date "2022.03.25"]
[Round "1"]
[White "Schäfle, Moritz"]
[Black "Cwiklik, Julian"]
[Result "0-1"]
[ECO "A04"]
[WhiteElo "1346"]
[BlackElo "1255"]
[Annotator "NA"]
[PlyCount "96"]
[EventDate "2022.03.25"]
[EventType "team-tourn"]
[EventRounds "7"]
[EventCountry "GER"]
[SourceTitle "playchess.com"]
[Source "ChessBase"]
[SourceQuality "1"]
[TimeControl "40/5400+30:1800+30"]

1. Nf3 {[%emt 0:00:02]} Nc6 {[%emt 0:00:46]} 2. d4 {[%emt 0:00:05]} d5 {[%emt 0:00:55]} 3. g3 {[%emt 0:00:11]} Nf6 {[%emt 0:01:11]} 4. Bg2 {[%emt 0:00:05]} Bg4 {[%emt 0:01:15]} 5. O-O {[%emt 0:00:12]} e6 {[%emt 0:01:45]} 6. c4 {[%emt 0:00:28]} dxc4 {[%emt 0:05:02]} 7. Qa4 {[%emt 0:01:51]} Nd5 {[%emt 0:07:23]} 8. Qxc4 {[%emt 0:16:24]} Nb6 {[%emt 0:03:01]} 9. Qd3 {[%emt 0:01:52]} Be7 {[%emt 0:03:24]} 10. Ne5 {[%emt 0:03:43]} Nxe5 {[%emt 0:02:51]} 11. dxe5 {[%emt 0:00:39]} Qxd3 {[%emt 0:00:58]} 12. exd3 {[%emt 0:00:17]} Be2 {[%emt 0:01:10]} 13. Re1 {[%emt 0:02:29]} Bxd3 {[%emt 0:00:17]} 14. Bxb7 {[%emt 0:00:13]} Rb8 {[%emt 0:00:57]} 15. Bc6+ {[%emt 0:03:04]} Kf8 {[%emt 0:02:03]} 16. Nc3 {[%emt 0:03:49]} Nc4 {[%emt 0:00:51]} 17. b3 {[%emt 0:03:39]} Bb4 {[%emt 0:08:32]} 18. bxc4 {[%emt 0:03:00]} Bxc3 {[%emt 0:00:47]} 19. Ba3+ {[%emt 0:02:02]} Kg8 {[%emt 0:01:00]} 20. Rad1 {[%emt 0:01:21]} Bxe1 {[%emt 0:01:47]} 21. Rxd3 {[%emt 0:00:22]} g6 {[%emt 0:01:28]} 22. Be7 {[%emt 0:02:35]} h5 {[%emt 0:02:09]} 23. Bf6 {[%emt 0:01:00]} Rh7 {[%emt 0:01:49]} 24. Kf1 {[%emt 0:06:53]} Ba5 {[%emt 0:01:51]} 25. Ke2 {[%emt 0:03:29]} Bb6 {[%emt 0:03:57]} 26. Rd7 {[%emt 0:07:45]} a6 {[%emt 0:08:57]} 27. Kf3 {[%emt 0:10:02]} h4 {[%emt 0:03:29]} 28. g4 {[%emt 0:02:55]} h3 {[%emt 0:05:56]} 29. Kg3 {[%emt 0:01:28]} Ba5 {[%emt 0:03:31]} 30. f3 {[%emt 0:03:26]} g5 {[%emt 0:01:10]} 31. Bxg5 {[%emt 0:01:58]} Be1+ {[%emt 0:00:22]} 32. Kf4 {[%emt 0:00:36]} Bh4 {[%emt 0:09:37]} 33. Bxh4 {[%emt 0:02:07]} Rxh4 {[%emt 0:00:25]} 34. Rxc7 {[%emt 0:00:31]} Rb4 {[%emt 0:02:30]} 35. Be4 {[%emt 0:01:53]} Rh8 {[%emt 0:00:43]} 36. Kg5 {[%emt 0:02:22]} Kg7 {[%emt 0:01:16]} 37. f4 {[%emt 0:01:12]} Rd8 {[%emt 0:02:00]} 38. f5 {[%emt 0:00:45]} exf5 {[%emt 0:00:41]} 39. gxf5 {[%emt 0:00:43]} Rb2 {[%emt 0:02:45]} 40. e6 {[%emt 0:02:41]} Rg2+ {[%emt 0:01:28]} 41. Kf4 {[%emt 0:31:37]} Rxh2 {[%emt 0:35:25]} 42. Kg3 {[%emt 0:03:00]} Re2 {[%emt 0:01:15]} 43. Rxf7+ {[%emt 0:01:59]} Kg8 {[%emt 0:01:29]} 44. Bd5 {[%emt 0:03:23]} Rxd5 {[%emt 0:00:00]} 45. cxd5 {[%emt 0:00:00]} h2 {[%emt 0:00:00]} 46. d6 {[%emt 0:00:00]} h1=Q {[%emt 0:00:00]} 47. d7 {[%emt 0:00:00]} Qg2+ {[%emt 0:00:00]} 48. Kf4 {[%emt 0:00:00]} Re4# 0-1

[Event "DVM U12 2021-22"]
[Site "Naumburg"]
[Date "2022.03.25"]
[Round "1"]
[White "Schimann, Kirill"]
[Black "Detjen, Mattes"]
[Result "1-0"]
[ECO "D00"]
[WhiteElo "1344"]
[BlackElo "1124"]
[Annotator "NA"]
[PlyCount "117"]
[EventDate "2022.03.25"]
[EventType "team-tourn"]
[EventRounds "7"]
[EventCountry "GER"]
[SourceTitle "playchess.com"]
[Source "ChessBase"]
[SourceQuality "1"]
[TimeControl "40/5400+30:1800+30"]

1. d4 {[%emt 0:00:03]} d5 {[%emt 0:00:10]} 2. Bf4 {[%emt 0:00:07]} e6 {[%emt 0:00:23]} 3. e3 {[%emt 0:00:11]} Nf6 {[%emt 0:00:46]} 4. Nf3 {[%emt 0:00:19]} Be7 {[%emt 0:00:21]} 5. c3 {[%emt 0:00:29]} O-O {[%emt 0:01:19]} 6. Bd3 {[%emt 0:01:13]} b6 {[%emt 0:02:26]} 7. Nbd2 {[%emt 0:01:35]} c5 {[%emt 0:00:28]} 8. dxc5 {[%emt 0:02:21]} bxc5 {[%emt 0:00:55]} 9. Bc2 {[%emt 0:00:32]} Ba6 {[%emt 0:01:43]} 10. e4 {[%emt 0:03:00]} Nc6 {[%emt 0:02:46]} 11. exd5 {[%emt 0:03:28]} exd5 {[%emt 0:00:53]} 12. Ba4 {[%emt 0:06:10]} Qb6 {[%emt 0:03:11]} 13. Qb3 {[%emt 0:02:14]} Qxb3 {[%emt 0:02:15]} 14. Nxb3 {[%emt 0:01:16]} Rac8 {[%emt 0:02:44]} 15. Ne5 {[%emt 0:06:04]} Nxe5 {[%emt 0:03:02]} 16. Bxe5 {[%emt 0:00:11]} c4 {[%emt 0:01:06]} 17. Nd2 {[%emt 0:01:16]} Bb7 {[%emt 0:04:01]} 18. Bd4 {[%emt 0:02:51]} a6 {[%emt 0:07:04]} 19. O-O {[%emt 0:02:21]} Bc6 {[%emt 0:02:29]} 20. Bxc6 {[%emt 0:00:40]} Rxc6 {[%emt 0:00:36]} 21. Rfe1 {[%emt 0:00:24]} Re8 {[%emt 0:01:58]} 22. Bxf6 {[%emt 0:01:49]} Rxf6 {[%emt 0:00:16]} 23. Re5 {[%emt 0:01:47]} Rd6 {[%emt 0:01:23]} 24. Rae1 {[%emt 0:00:49]} Kf8 {[%emt 0:02:02]} 25. Nf3 {[%emt 0:02:57]} Rd7 {[%emt 0:05:34]} 26. Rd1 {[%emt 0:01:29]} Red8 {[%emt 0:01:32]} 27. Nd4 {[%emt 0:02:58]} Bf6 {[%emt 0:02:20]} 28. Re2 {[%emt 0:01:00]} Rd6 {[%emt 0:02:28]} 29. h3 {[%emt 0:03:22]} Rb6 {[%emt 0:02:06]} 30. Rdd2 {[%emt 0:02:37]} Rbd6 {[%emt 0:04:52]} 31. Kf1 {[%emt 0:01:31]} Bg5 {[%emt 0:02:06]} 32. Rc2 {[%emt 0:01:11]} Re8 {[%emt 0:03:09]} 33. Rxe8+ {[%emt 0:01:17]} Kxe8 {[%emt 0:00:17]} 34. Nf5 {[%emt 0:01:15]} Rg6 {[%emt 0:03:27]} 35. h4 {[%emt 0:01:34]} Bf4 {[%emt 0:04:23]} 36. g3 {[%emt 0:01:34]} Bc7 {[%emt 0:00:48]} 37. Rd2 {[%emt 0:03:45]} Kf8 {[%emt 0:04:25]} 38. Rxd5 {[%emt 0:01:01]} Rb6 {[%emt 0:03:25]} 39. Rd2 {[%emt 0:00:39]} Rf6 {[%emt 0:00:43]} 40. g4 {[%emt 0:02:27]} g6 {[%emt 0:00:21]} 41. Ne3 {[%emt 0:30:59]} Bf4 {[%emt 0:33:20]} 42. Ke2 {[%emt 0:02:22]} Re6 {[%emt 0:03:42]} 43. Rd4 {[%emt 0:01:12]} Bxe3 {[%emt 0:01:09]} 44. fxe3 {[%emt 0:00:08]} Rb6 {[%emt 0:01:11]} 45. Rd2 {[%emt 0:00:38]} Ke7 {[%emt 0:00:41]} 46. e4 {[%emt 0:00:47]} h5 {[%emt 0:01:49]} 47. gxh5 {[%emt 0:00:36]} gxh5 {[%emt 0:00:07]} 48. Ke3 {[%emt 0:00:54]} Rb5 {[%emt 0:02:17]} 49. Kd4 {[%emt 0:03:27]} f5 {[%emt 0:04:11]} 50. Kxc4 {[%emt 0:00:28]} fxe4 {[%emt 0:00:45]} 51. Re2 {[%emt 0:00:30]} Kd6 {[%emt 0:00:22]} 52. Kd4 {[%emt 0:03:15]} Ra5 {[%emt 0:00:25]} 53. a3 {[%emt 0:00:22]} Rb5 {[%emt 0:00:17]} 54. c4 {[%emt 0:03:20]} Rb7 {[%emt 0:02:00]} 55. b4 {[%emt 0:02:48]} Ke6 {[%emt 0:03:11]} 56. Rxe4+ {[%emt 0:00:26]} Kf5 {[%emt 0:00:12]} 57. c5 {[%emt 0:02:36]} Rd7+ {[%emt 0:00:18]} 58. Ke3 {[%emt 0:00:28]} Rc7 {[%emt 0:01:35]} 59. Rc4 {[%emt 0:02:21]} 1-0

[Event "DVM U12 2021-22"]
[Site "Naumburg"]
[Date "2022.03.25"]
[Round "1"]
[White "Bock, Leonas"]
[Black "Klaska, Philipp Leon"]
[Result "1/2-1/2"]
[ECO "D04"]
[WhiteElo "1341"]
[BlackElo "1959"]
[Annotator "NA"]
[PlyCount "52"]
[EventDate "2022.03.25"]
[EventType "team-tourn"]
[EventRounds "7"]
[EventCountry "GER"]
[SourceTitle "playchess.com"]
[Source "ChessBase"]
[SourceQuality "1"]
[TimeControl "40/5400+30:1800+30"]

1. d4 {[%emt 0:00:04]} d5 {[%emt 0:00:38]} 2. Nf3 {[%emt 0:00:10]} Nf6 {[%emt 0:00:33]} 3. e3 {[%emt 0:00:20]} c5 {[%emt 0:01:45]} 4. b3 {[%emt 0:02:19]} cxd4 {[%emt 0:02:42]} 5. exd4 {[%emt 0:00:20]} Nc6 {[%emt 0:01:33]} 6. Bd3 {[%emt 0:02:55]} Bg4 {[%emt 0:01:30]} 7. Bb2 {[%emt 0:08:51]} e6 {[%emt 0:03:44]} 8. Nbd2 {[%emt 0:01:03]} Rc8 {[%emt 0:04:34]} 9. a3 {[%emt 0:03:57]} Bd6 {[%emt 0:04:53]} 10. O-O {[%emt 0:02:34]} Qc7 {[%emt 0:03:11]} 11. Qc1 {[%emt 0:03:02]} O-O {[%emt 0:06:50]} 12. Re1 {[%emt 0:01:16]} Nd7 {[%emt 0:04:10]} 13. c4 {[%emt 0:06:37]} Bh5 {[%emt 0:20:47]} 14. Qc2 {[%emt 0:04:29]} Bg6 {[%emt 0:02:04]} 15. Bxg6 {[%emt 0:01:50]} hxg6 {[%emt 0:00:21]} 16. Rac1 {[%emt 0:01:51]} b6 {[%emt 0:09:49]} 17. cxd5 {[%emt 0:09:59]} exd5 {[%emt 0:00:07]} 18. Ne5 {[%emt 0:01:08]} Ncxe5 {[%emt 0:05:59]} 19. Qxc7 {[%emt 0:01:24]} Rxc7 {[%emt 0:00:59]} 20. Rxc7 {[%emt 0:00:57]} Bxc7 {[%emt 0:00:22]} 21. dxe5 {[%emt 0:00:27]} Nc5 {[%emt 0:07:51]} 22. Re3 {[%emt 0:04:15]} Ne6 {[%emt 0:03:59]} 23. Nf3 {[%emt 0:01:28]} Rc8 {[%emt 0:03:27]} 24. Rc3 {[%emt 0:01:48]} Kf8 {[%emt 0:02:55]} 25. Kf1 {[%emt 0:02:07]} Ke7 {[%emt 0:01:25]} 26. Rc2 {[%emt 0:02:00]} Kd7 1/2-1/2

[Event "DVM U12 2021-22"]
[Site "Naumburg"]
[Date "2022.03.25"]
[Round "1"]
[White "Kalinin, Alexey"]
[Black "Xue, Luka"]
[Result "0-1"]
[ECO "D04"]
[WhiteElo "1341"]
[BlackElo "1610"]
[Annotator "NA"]
[PlyCount "86"]
[EventDate "2022.03.25"]
[EventType "team-tourn"]
[EventRounds "7"]
[EventCountry "GER"]
[SourceTitle "playchess.com"]
[Source "ChessBase"]
[SourceQuality "1"]
[TimeControl "40/5400+30:1800+30"]

1. d4 {[%emt 0:00:04]} d5 {[%emt 0:00:07]} 2. Nf3 {[%emt 0:00:21]} Nf6 {[%emt 0:00:04]} 3. e3 {[%emt 0:00:39]} c6 {[%emt 0:00:29]} 4. Bd3 {[%emt 0:00:53]} Bg4 {[%emt 0:00:29]} 5. Nbd2 {[%emt 0:00:44]} e6 {[%emt 0:01:00]} 6. h3 {[%emt 0:01:17]} Bh5 {[%emt 0:00:12]} 7. b3 {[%emt 0:01:15]} Nbd7 {[%emt 0:00:49]} 8. Bb2 {[%emt 0:00:32]} Bd6 {[%emt 0:00:53]} 9. Rc1 {[%emt 0:00:56]} O-O {[%emt 0:00:44]} 10. c4 {[%emt 0:01:01]} Re8 {[%emt 0:04:15]} 11. c5 {[%emt 0:01:15]} Bc7 {[%emt 0:08:26]} 12. O-O {[%emt 0:02:40]} Qe7 {[%emt 0:07:25]} 13. Qc2 {[%emt 0:03:32]} e5 {[%emt 0:10:11]} 14. dxe5 {[%emt 0:06:47]} Nxe5 {[%emt 0:00:55]} 15. Bxe5 {[%emt 0:05:03]} Bxe5 {[%emt 0:00:21]} 16. Ng5 {[%emt 0:01:33]} h6 {[%emt 0:04:45]} 17. Ngf3 {[%emt 0:05:12]} Bxf3 {[%emt 0:14:48]} 18. Nxf3 {[%emt 0:01:32]} Bc7 {[%emt 0:00:59]} 19. Rfe1 {[%emt 0:04:32]} Ne4 {[%emt 0:01:27]} 20. b4 {[%emt 0:03:50]} a6 {[%emt 0:10:21]} 21. a4 {[%emt 0:03:32]} f5 {[%emt 0:06:12]} 22. Nd4 {[%emt 0:03:33]} Qe5 {[%emt 0:01:54]} 23. f4 {[%emt 0:02:35]} Qf6 {[%emt 0:01:41]} 24. Bxe4 {[%emt 0:03:01]} Rxe4 {[%emt 0:00:53]} 25. Qb3 {[%emt 0:04:24]} Bxf4 {[%emt 0:02:40]} 26. exf4 {[%emt 0:03:48]} Qxd4+ {[%emt 0:01:15]} 27. Kh1 {[%emt 0:00:26]} Rae8 {[%emt 0:01:35]} 28. Rxe4 {[%emt 0:01:22]} Rxe4 {[%emt 0:00:21]} 29. Rb1 {[%emt 0:03:58]} Re3 {[%emt 0:03:50]} 30. Qc2 {[%emt 0:04:48]} Qxf4 {[%emt 0:01:04]} 31. Qb2 {[%emt 0:03:54]} Qe4 {[%emt 0:01:08]} 32. Qc1 {[%emt 0:01:49]} Rxh3+ {[%emt 0:00:20]} 33. Kg1 {[%emt 0:00:46]} Qd4+ {[%emt 0:00:13]} 34. Kf1 {[%emt 0:01:11]} Rh1+ {[%emt 0:00:14]} 35. Ke2 {[%emt 0:00:08]} Rxc1 {[%emt 0:00:10]} 36. Rxc1 Qe4+ 37. Kf1 {[%emt 0:01:13]} Qf4+ {[%emt 0:00:35]} 38. Kg1 {[%emt 0:00:26]} Qxc1+ {[%emt 0:00:04]} 39. Kh2 {[%emt 0:00:12]} Qf4+ {[%emt 0:00:07]} 40. Kh1 {[%emt 0:00:20]} d4 {[%emt 0:00:04]} 41. Kg1 {[%emt 0:30:16]} d3 {[%emt 0:30:07]} 42. Kh1 {[%emt 0:00:05]} d2 {[%emt 0:00:04]} 43. Kg1 {[%emt 0:00:08]} d1=Q# 0-1

[Event "DVM U12 2021-22"]
[Site "Naumburg"]
[Date "2022.03.25"]
[Round "1"]
[White "Teng, David"]
[Black "Roth, Andreas Christian"]
[Result "1/2-1/2"]
[ECO "B01"]
[WhiteElo "1334"]
[BlackElo "1254"]
[Annotator "NA"]
[PlyCount "51"]
[EventDate "2022.03.25"]
[EventType "team-tourn"]
[EventRounds "7"]
[EventCountry "GER"]
[SourceTitle "playchess.com"]
[Source "ChessBase"]
[SourceQuality "1"]
[TimeControl "40/5400+30:1800+30"]

1. e4 {[%emt 0:00:01]} d5 {[%emt 0:00:34]} 2. exd5 {[%emt 0:00:19]} Qxd5 {[%emt 0:00:18]} 3. Nc3 {[%emt 0:00:19]} Qa5 {[%emt 0:00:31]} 4. Nf3 {[%emt 0:01:05]} Nf6 {[%emt 0:01:40]} 5. d4 {[%emt 0:01:58]} c6 {[%emt 0:02:17]} 6. Bc4 {[%emt 0:02:32]} Bg4 {[%emt 0:02:12]} 7. h3 {[%emt 0:02:03]} Bd7 {[%emt 0:04:10]} 8. Ne5 {[%emt 0:02:06]} e6 {[%emt 0:02:56]} 9. O-O {[%emt 0:02:05]} Bd6 {[%emt 0:03:35]} 10. Nf3 {[%emt 0:01:59]} O-O {[%emt 0:02:57]} 11. Bd2 {[%emt 0:03:22]} Qc7 {[%emt 0:02:24]} 12. Re1 {[%emt 0:04:43]} Nd5 {[%emt 0:03:56]} 13. Nxd5 {[%emt 0:03:13]} cxd5 {[%emt 0:02:09]} 14. Bd3 {[%emt 0:01:08]} Nc6 {[%emt 0:06:28]} 15. c3 {[%emt 0:05:17]} Rfe8 {[%emt 0:03:35]} 16. Qc2 {[%emt 0:02:16]} g6 {[%emt 0:03:33]} 17. Bg5 {[%emt 0:05:38]} Rac8 {[%emt 0:05:19]} 18. Bf6 {[%emt 0:04:27]} Be7 {[%emt 0:03:18]} 19. Bxe7 {[%emt 0:03:54]} Rxe7 {[%emt 0:01:20]} 20. Qd2 {[%emt 0:03:55]} f6 {[%emt 0:05:13]} 21. Re3 {[%emt 0:07:05]} e5 {[%emt 0:05:41]} 22. Rae1 {[%emt 0:06:30]} e4 {[%emt 0:03:24]} 23. Bc2 {[%emt 0:02:27]} Rce8 {[%emt 0:05:16]} 24. Nh2 {[%emt 0:02:31]} Na5 {[%emt 0:04:29]} 25. b3 {[%emt 0:03:18]} a6 {[%emt 0:02:48]} 26. Rg3 {[%emt 0:01:50]} 1/2-1/2

[Event "DVM U12 2021-22"]
[Site "Naumburg"]
[Date "2022.03.25"]
[Round "1"]
[White "Barthel, Jacob"]
[Black "Meisel, Aaron"]
[Result "1-0"]
[ECO "D00"]
[WhiteElo "1321"]
[BlackElo "915"]
[Annotator "NA"]
[PlyCount "61"]
[EventDate "2022.03.25"]
[EventType "team-tourn"]
[EventRounds "7"]
[EventCountry "GER"]
[SourceTitle "playchess.com"]
[Source "ChessBase"]
[SourceQuality "1"]
[TimeControl "40/5400+30:1800+30"]

1. d4 {[%emt 0:00:03]} d5 {[%emt 0:00:13]} 2. Bf4 {[%emt 0:00:13]} Bf5 {[%emt 0:00:42]} 3. Nf3 {[%emt 0:00:14]} Nc6 {[%emt 0:00:36]} 4. e3 {[%emt 0:00:32]} Nf6 {[%emt 0:00:45]} 5. Nbd2 {[%emt 0:01:06]} e6 {[%emt 0:00:50]} 6. Nh4 {[%emt 0:02:29]} Bg6 {[%emt 0:02:41]} 7. Nxg6 {[%emt 0:05:51]} hxg6 {[%emt 0:00:34]} 8. h3 {[%emt 0:04:53]} Bd6 {[%emt 0:01:02]} 9. Bxd6 {[%emt 0:06:19]} Qxd6 {[%emt 0:01:26]} 10. c4 {[%emt 0:09:53]} dxc4 {[%emt 0:01:53]} 11. Bxc4 {[%emt 0:02:45]} O-O-O {[%emt 0:02:49]} 12. Rc1 {[%emt 0:06:02]} Qb4 {[%emt 0:03:46]} 13. Qc2 {[%emt 0:14:52]} Rh5 {[%emt 0:06:49]} 14. a3 {[%emt 0:02:23]} Qa5 {[%emt 0:03:10]} 15. b4 {[%emt 0:04:52]} Qb6 {[%emt 0:06:22]} 16. Be2 {[%emt 0:01:20]} a6 {[%emt 0:03:48]} 17. Nc4 {[%emt 0:01:38]} Qa7 {[%emt 0:01:20]} 18. Bxh5 {[%emt 0:00:20]} gxh5 {[%emt 0:03:54]} 19. Ne5 {[%emt 0:03:47]} Rd6 {[%emt 0:03:38]} 20. O-O {[%emt 0:03:29]} Nd5 {[%emt 0:05:47]} 21. Nxf7 {[%emt 0:08:35]} Rd7 {[%emt 0:02:32]} 22. Ne5 {[%emt 0:01:19]} Rd6 {[%emt 0:02:03]} 23. Nxc6 {[%emt 0:00:44]} Rxc6 {[%emt 0:02:12]} 24. Qg6 {[%emt 0:00:48]} Kd8 {[%emt 0:03:37]} 25. Rxc6 {[%emt 0:02:02]} bxc6 {[%emt 0:00:57]} 26. Qxe6 {[%emt 0:00:14]} Qb6 {[%emt 0:00:43]} 27. Rc1 {[%emt 0:00:59]} Ne7 {[%emt 0:01:07]} 28. Rc5 {[%emt 0:01:24]} h4 {[%emt 0:01:02]} 29. Re5 {[%emt 0:04:16]} g6 {[%emt 0:02:12]} 30. Qxe7+ {[%emt 0:00:31]} Kc8 {[%emt 0:00:10]} 31. Rc5 {[%emt 0:01:10]} 1-0